[Event "12ème open de Salon"]
[Site "Salon de Provence, France"]
[Date "2022.07.09"]
[Round "1.1"]
[White "Chaumet, Etienne"]
[Black "Delorme, Laurie"]
[Result "1-0"]
[TimeControl "1 h 30 min + 30 s"]
[WhiteElo "1809"]
[BlackElo "2083"]

1. e4 {[%clk 01:30:55]} {[%emt 00:00:04]} e5 {[%clk 01:30:52]} {[%emt
00:00:09]} 2. Nf3 {[%clk 01:31:15]} {[%emt 00:00:10]} Nc6 {[%clk 01:31:15]}
{[%emt 00:00:05]} 3. Bb5 {[%clk 01:31:35]} {[%emt 00:00:11]} a6 {[%clk
01:31:33]} {[%emt 00:00:12]} 4. Ba4 {[%clk 01:31:55]} {[%emt 00:00:09]} Nf6
{[%clk 01:31:45]} {[%emt 00:00:18]} 5. O-O {[%clk 01:31:56]} {[%emt 00:00:29]}
Be7 {[%clk 01:31:31]} {[%emt 00:00:44]} 6. Re1 {[%clk 01:32:12]} {[%emt
00:00:14]} b5 {[%clk 01:31:25]} {[%emt 00:00:37]} 7. Bb3 {[%clk 01:32:25]}
{[%emt 00:00:17]} O-O {[%clk 01:31:39]} {[%emt 00:00:17]} 8. c3 {[%clk
01:32:19]} {[%emt 00:00:36]} d6 {[%clk 01:31:36]} {[%emt 00:00:33]} 9. h3
{[%clk 01:32:20]} {[%emt 00:00:28]} Na5 {[%clk 01:30:59]} {[%emt 00:01:07]} 10.
Bc2 {[%clk 01:32:28]} {[%emt 00:00:22]} c5 {[%clk 01:31:08]} {[%emt 00:00:22]}
11. d4 {[%clk 01:32:25]} {[%emt 00:00:32]} Qc7 {[%clk 01:31:19]} {[%emt
00:00:18]} 12. Nbd2 {[%clk 01:32:27]} {[%emt 00:00:29]} cxd4 {[%clk 01:31:07]}
{[%emt 00:00:42]} 13. cxd4 {[%clk 01:32:16]} {[%emt 00:00:41]} Nc6 {[%clk
01:31:21]} {[%emt 00:00:16]} 14. d5 {[%clk 01:28:40]} {[%emt 00:04:06]} Nb4
{[%clk 01:23:54]} {[%emt 00:07:59]} 15. Bb1 {[%clk 01:25:43]} {[%emt 00:03:24]}
a5 {[%clk 01:23:55]} {[%emt 00:00:30]} 16. a3 {[%clk 01:22:44]} {[%emt
00:03:29]} Na6 {[%clk 01:24:14]} {[%emt 00:00:12]} 17. b3 {[%clk 01:08:05]}
{[%emt 00:15:10]} Bd7 {[%clk 01:13:23]} {[%emt 00:11:20]} 18. Bb2 {[%clk
01:04:16]} {[%emt 00:04:19]} Nc5 {[%clk 01:03:03]} {[%emt 00:10:50]} 19. Bc2
{[%clk 01:01:25]} {[%emt 00:03:21]} Rfc8 {[%clk 00:56:47]} {[%emt 00:06:46]} 20.
Rc1 {[%clk 00:58:54]} {[%emt 00:03:00]} Qd8 {[%clk 00:48:17]} {[%emt 00:09:01]}
21. Nf1 {[%clk 00:53:24]} {[%emt 00:06:00]} g6 {[%clk 00:45:51]} {[%emt
00:02:56]} 22. Ng3 {[%clk 00:49:38]} {[%emt 00:04:15]} Bf8 {[%clk 00:46:03]}
{[%emt 00:00:19]} 23. Qd2 {[%clk 00:47:08]} {[%emt 00:03:00]} Bg7 {[%clk
00:44:46]} {[%emt 00:01:47]} 24. Qe3 {[%clk 00:42:50]} {[%emt 00:04:47]} Qf8
{[%clk 00:43:27]} {[%emt 00:01:49]} 25. Qe2 {[%clk 00:36:21]} {[%emt 00:06:59]}
Bh6 {[%clk 00:39:59]} {[%emt 00:03:59]} 26. Rb1 {[%clk 00:33:52]} {[%emt
00:02:59]} Bf4 {[%clk 00:34:26]} {[%emt 00:06:03]} 27. Bc1 {[%clk 00:31:38]}
{[%emt 00:02:45]} Qh6 {[%clk 00:32:32]} {[%emt 00:02:22]} 28. Bxf4 {[%clk
00:29:09]} {[%emt 00:02:59]} Qxf4 {[%clk 00:31:38]} {[%emt 00:01:24]} 29. Rec1
{[%clk 00:27:53]} {[%emt 00:01:45]} h5 {[%clk 00:28:32]} {[%emt 00:03:37]} 30.
Nd2 {[%clk 00:23:16]} {[%emt 00:05:08]} h4 {[%clk 00:25:25]} {[%emt 00:03:38]}
31. Ngf1 {[%clk 00:22:41]} {[%emt 00:01:04]} Nh5 {[%clk 00:22:24]} {[%emt
00:03:32]} 32. Ne3 {[%clk 00:18:47]} {[%emt 00:04:24]} Qf6 {[%clk 00:20:59]}
{[%emt 00:01:55]} 33. Ng4 {[%clk 00:14:04]} {[%emt 00:05:13]} Qg5 {[%clk
00:20:59]} {[%emt 00:00:29]} 34. Nf3 {[%clk 00:13:48]} {[%emt 00:00:46]} Bxg4
{[%clk 00:19:59]} {[%emt 00:01:31]} 35. hxg4 {[%clk 00:13:29]} {[%emt
00:00:48]} Qxg4 {[%clk 00:20:24]} {[%emt 00:00:05]} 36. Nd4 {[%clk 00:12:50]}
{[%emt 00:01:09]} Qxe2 {[%clk 00:15:17]} {[%emt 00:05:37]} 37. Nxe2 {[%clk
00:13:11]} {[%emt 00:00:08]} Nf6 {[%clk 00:15:18]} {[%emt 00:00:29]} 38. f3
{[%clk 00:13:00]} {[%emt 00:00:42]} b4 {[%clk 00:13:55]} {[%emt 00:01:53]} 39.
a4 {[%clk 00:12:30]} {[%emt 00:00:59]} Kf8 {[%emt 00:01:15]} 40. Kf2 {[%clk
00:12:09]} Ke7 {[%clk 00:14:18]} {[%emt 00:00:14]} 41. Ke3 {[%clk 00:11:56]}
{[%emt 00:00:43]} g5 {[%clk 00:12:24]} {[%emt 00:02:23]} 42. Kd2 {[%clk
00:10:09]} {[%emt 00:02:17]} Kd8 {[%clk 00:10:50]} {[%emt 00:02:04]} 43. Rh1
{[%clk 00:09:50]} {[%emt 00:00:50]} Nh5 {[%clk 00:05:19]} {[%emt 00:06:02]} 44.
g3 {[%clk 00:09:43]} {[%emt 00:00:36]} Nxg3 {[%emt 00:00:15]} 45. Nxg3 {[%clk
00:10:06]} {[%emt 00:00:03]} hxg3 {[%clk 00:06:06]} {[%emt 00:00:03]} 46. Rbg1
{[%clk 00:07:34]} {[%emt 00:03:01]} Ke7 {[%clk 00:05:42]} {[%emt 00:00:53]} 47.
Rxg3 {[%clk 00:05:17]} {[%emt 00:02:48]} Rg8 {[%clk 00:05:56]} {[%emt
00:00:15]} 48. Rh5 {[%clk 00:04:53]} {[%emt 00:00:54]} Kf6 {[%clk 00:06:09]}
{[%emt 00:00:17]} 49. Rh6+ {[%clk 00:04:44]} {[%emt 00:00:39]} Rg6 {[%clk
00:06:38]} {[%emt 00:00:02]} 50. Rh7 {[%clk 00:04:30]} {[%emt 00:00:44]} Rc8
{[%clk 00:06:30]} {[%emt 00:00:37]} 51. Rgh3 {[%clk 00:04:05]} {[%emt
00:00:52]} Rgg8 {[%clk 00:06:08]} {[%emt 00:00:55]} 52. R3h6+ {[%clk 00:03:50]}
{[%emt 00:00:45]} Ke7 {[%clk 00:06:20]} {[%emt 00:00:17]} 53. Rh3 {[%clk
00:01:25]} {[%emt 00:02:56]} Nd7 {[%clk 00:04:51]} {[%emt 00:01:59]} 54. Bd3
{[%clk 00:01:07]} {[%emt 00:00:47]} Rc3 {[%clk 00:04:48]} {[%emt 00:00:34]} 55.
Bb5 {[%clk 00:01:15]} {[%emt 00:00:22]} Nc5 {[%clk 00:05:07]} {[%emt 00:00:10]}
56. Bc4 {[%clk 00:00:58]} {[%emt 00:00:46]} Nxb3+ {[%clk 00:02:43]} {[%emt
00:02:55]} 57. Bxb3 {[%clk 00:01:17]} {[%emt 00:00:11]} Rxb3 {[%clk 00:03:09]}
{[%emt 00:00:03]} 58. Ke2 {[%clk 00:01:26]} {[%emt 00:00:21]} Ra3 {[%clk
00:01:14]} {[%emt 00:02:25]} 59. R3h6 {[%clk 00:01:36]} {[%emt 00:00:20]} Ra2+
{[%clk 00:01:03]} {[%emt 00:00:42]} 60. Kd1 {[%clk 00:01:54]} {[%emt 00:00:12]}
Rf8 {[%clk 00:00:34]} {[%emt 00:00:58]} 61. Re6+ {[%clk 00:02:06]} {[%emt
00:00:17]} Kd7 {[%clk 00:00:59]} {[%emt 00:00:05]} 62. Rf6 {[%clk 00:02:21]}
{[%emt 00:00:15]} Rxa4 {[%clk 00:01:11]} {[%emt 00:00:17]} 63. Rhh6 {[%clk
00:02:40]} {[%emt 00:00:12]} b3 {[%clk 00:00:32]} {[%emt 00:01:09]} 64. Rxd6+
{[%clk 00:03:03]} {[%emt 00:00:07]} Ke7 {[%emt 00:00:13]} 65. Rb6 {[%clk
00:02:32]} {[%emt 00:00:50]} Rd8 {[%clk 00:00:32]} {[%emt 00:00:58]} 66. Rb7+
{[%clk 00:02:35]} {[%emt 00:00:27]} Rd7 {[%clk 00:00:00]} {[%emt 00:00:33]} 67.
d6+ {[%emt 00:00:55]} 1-0

[Event "12ème open de Salon"]
[Site "Salon de Provence, France"]
[Date "2022.07.09"]
[Round "1.2"]
[White "Figier, Anthony"]
[Black "Canonge, Jerome"]
[Result "1-0"]
[TimeControl "1 h 30 min + 30 s"]
[WhiteElo "1977"]
[BlackElo "1796"]

1. d4 {[%clk 01:30:54]} {[%emt 00:00:05]} Nf6 {[%clk 01:30:46]} {[%emt
00:00:13]} 2. Nf3 {[%clk 01:31:17]} {[%emt 00:00:09]} d5 {[%clk 01:30:51]}
{[%emt 00:00:24]} 3. c4 {[%clk 01:31:40]} {[%emt 00:00:08]} Bg4 {[%clk
01:29:28]} {[%emt 00:01:53]} 4. Ne5 {[%clk 01:30:55]} {[%emt 00:01:16]} Bf5
{[%clk 01:24:54]} {[%emt 00:05:04]} 5. Nc3 {[%clk 01:25:39]} {[%emt 00:05:47]}
c6 {[%clk 01:17:26]} {[%emt 00:07:57]} 6. e3 {[%clk 01:25:18]} {[%emt
00:00:51]} e6 {[%clk 01:17:26]} {[%emt 00:00:29]} 7. g4 {[%clk 01:25:48]}
{[%emt 00:00:01]} Bg6 {[%emt 00:01:20]} 8. h4 {[%clk 01:26:07]} h5 {[%clk
01:15:27]} {[%emt 00:01:48]} 9. Nxg6 {[%clk 01:26:23]} {[%emt 00:00:15]} fxg6
{[%clk 01:15:44]} {[%emt 00:00:12]} 10. g5 {[%clk 01:26:46]} {[%emt 00:00:08]}
Ng8 {[%clk 01:11:06]} {[%emt 00:05:08]} 11. Bh3 {[%clk 01:25:59]} {[%emt
00:01:17]} Qe7 {[%clk 01:06:07]} {[%emt 00:05:28]} 12. Qb3 {[%clk 01:19:35]}
{[%emt 00:06:54]} Na6 {[%clk 01:00:12]} {[%emt 00:06:23]} 13. Bxe6 {[%clk
01:12:27]} {[%emt 00:07:39]} Nb4 {[%clk 01:00:18]} {[%emt 00:00:23]} 14. cxd5
{[%clk 01:12:41]} {[%emt 00:00:17]} cxd5 {[%clk 00:53:29]} {[%emt 00:07:19]} 15.
Nxd5 {[%clk 01:11:20]} {[%emt 00:01:52]} 1-0

[Event "12ème open de Salon"]
[Site "Salon de Provence, France"]
[Date "2022.07.09"]
[Round "1.3"]
[White "Marcellier, Lucie"]
[Black "Kolb, Sebastien"]
[Result "1/2-1/2"]
[TimeControl "1 h 30 min + 30 s"]
[WhiteElo "1734"]
[BlackElo "1947"]

1. d4 {[%clk 01:30:57]} {[%emt 00:00:02]} Nf6 {[%clk 01:30:14]} {[%emt
00:00:46]} 2. Bf4 {[%clk 01:31:08]} {[%emt 00:00:19]} g6 {[%clk 01:29:01]}
{[%emt 00:01:43]} 3. Nc3 {[%clk 01:31:18]} {[%emt 00:00:20]} d5 {[%clk
01:27:16]} {[%emt 00:02:15]} 4. e3 {[%clk 01:30:05]} {[%emt 00:01:44]} Bg7
{[%clk 01:26:19]} {[%emt 00:01:26]} 5. h4 {[%clk 01:29:33]} {[%emt 00:01:02]}
Ne4 {[%clk 01:21:07]} {[%emt 00:05:43]} 6. Nxe4 {[%clk 01:15:58]} {[%emt
00:14:05]} dxe4 {[%clk 01:19:36]} {[%emt 00:02:00]} 7. h5 {[%clk 01:15:53]}
{[%emt 00:00:36]} Nc6 {[%clk 01:07:54]} {[%emt 00:12:12]} 8. Bb5 {[%clk
01:02:47]} {[%emt 00:13:36]} Bd7 {[%clk 01:06:04]} {[%emt 00:02:19]} 9. Nh3
{[%clk 00:54:17]} {[%emt 00:09:00]} a6 {[%clk 00:53:36]} {[%emt 00:12:58]} 10.
Bc4 {[%clk 00:52:13]} {[%emt 00:02:34]} Na5 {[%clk 00:50:29]} {[%emt 00:03:37]}
11. Be2 {[%clk 00:49:03]} {[%emt 00:03:40]} Bb5 {[%clk 00:42:55]} {[%emt
00:08:04]} 12. Ng5 {[%clk 00:41:13]} {[%emt 00:08:21]} Qd5 {[%clk 00:33:57]}
{[%emt 00:09:27]} 13. b3 {[%clk 00:40:06]} {[%emt 00:01:38]} Bxe2 {[%clk
00:32:25]} {[%emt 00:02:02]} 14. Qxe2 {[%clk 00:40:15]} {[%emt 00:00:21]} h6
{[%clk 00:22:38]} {[%emt 00:10:17]} 15. c4 {[%clk 00:31:24]} {[%emt 00:09:20]}
Qc6 {[%clk 00:23:03]} {[%emt 00:00:06]} 16. Nh3 {[%clk 00:31:50]} {[%emt
00:00:04]} g5 {[%clk 00:21:57]} {[%emt 00:01:36]} 17. Bg3 {[%clk 00:30:10]}
{[%emt 00:02:10]} Qb6 {[%clk 00:19:15]} {[%emt 00:03:11]} 18. O-O {[%clk
00:27:03]} {[%emt 00:03:38]} O-O {[%clk 00:19:09]} {[%emt 00:00:35]} 19. Rad1
{[%clk 00:23:49]} {[%emt 00:03:44]} Nc6 {[%clk 00:17:07]} {[%emt 00:02:32]} 20.
f4 {[%clk 00:23:14]} {[%emt 00:01:05]} exf3 {[%clk 00:16:47]} {[%emt 00:00:51]}
21. Qxf3 {[%clk 00:23:16]} {[%emt 00:00:28]} e5 {[%clk 00:13:46]} {[%emt
00:03:30]} 22. c5 {[%clk 00:16:29]} {[%emt 00:07:17]} Qb5 {[%clk 00:12:36]}
{[%emt 00:01:41]} 23. d5 {[%clk 00:15:35]} {[%emt 00:01:23]} Ne7 {[%clk
00:11:32]} {[%emt 00:01:34]} 24. d6 {[%clk 00:15:28]} {[%emt 00:00:37]} cxd6
{[%clk 00:11:56]} {[%emt 00:00:07]} 25. cxd6 {[%clk 00:14:33]} {[%emt
00:01:25]} Nc6 {[%clk 00:12:20]} {[%emt 00:00:06]} 26. Qf5 {[%clk 00:14:11]}
{[%emt 00:00:53]} Qb6 {[%clk 00:10:02]} {[%emt 00:02:48]} 27. Bf2 {[%clk
00:12:48]} {[%emt 00:01:53]} e4 {[%clk 00:04:08]} {[%emt 00:06:24]} 28. Nxg5
{[%clk 00:08:26]} {[%emt 00:04:51]} hxg5 {[%clk 00:04:31]} {[%emt 00:00:07]} 29.
Qxg5 {[%clk 00:08:53]} {[%emt 00:00:03]} Qd8 {[%clk 00:04:45]} {[%emt
00:00:16]} 30. Qg4 {[%clk 00:09:00]} {[%emt 00:00:24]} f5 {[%clk 00:04:14]}
{[%emt 00:01:01]} 31. Qh3 {[%clk 00:08:46]} {[%emt 00:00:44]} Qg5 {[%clk
00:03:26]} {[%emt 00:01:17]} 32. Bh4 {[%clk 00:06:52]} {[%emt 00:02:24]} Qxh5
{[%clk 00:02:40]} {[%emt 00:01:16]} 33. Rd5 {[%clk 00:06:26]} {[%emt 00:00:55]}
Qg4 {[%clk 00:02:36]} {[%emt 00:00:35]} 34. Qxg4 {[%clk 00:03:52]} {[%emt
00:03:05]} fxg4 {[%clk 00:03:00]} {[%emt 00:00:06]} 35. Rxf8+ {[%clk 00:04:19]}
{[%emt 00:00:03]} Kxf8 {[%clk 00:01:30]} {[%emt 00:01:59]} 36. d7 {[%clk
00:04:18]} {[%emt 00:00:31]} Kf7 {[%clk 00:01:48]} {[%emt 00:00:10]} 37. d8=Q
{[%clk 00:03:43]} {[%emt 00:01:08]} Nxd8 {[%clk 00:02:14]} {[%emt 00:00:04]} 38.
Rxd8 {[%clk 00:03:29]} {[%emt 00:00:44]} Rxd8 {[%clk 00:02:37]} {[%emt
00:00:07]} 39. Bxd8 {[%clk 00:03:55]} {[%emt 00:00:04]} Ke6 {[%clk 00:02:13]}
{[%emt 00:00:55]} 1/2-1/2

[Event "12ème open de Salon"]
[Site "Salon de Provence, France"]
[Date "2022.07.09"]
[Round "1.4"]
[White "Lauret, Patrick"]
[Black "Roganova, Maxime"]
[Result "0-1"]
[TimeControl "1 h 30 min + 30 s"]
[WhiteElo "1670"]
[BlackElo "1471"]

1. e4 {[%clk 01:30:57]} {[%emt 00:00:02]} c5 {[%clk 01:30:56]} {[%emt
00:00:05]} 2. Nc3 {[%clk 01:31:22]} {[%emt 00:00:05]} d6 {[%clk 01:31:16]}
{[%emt 00:00:10]} 3. h3 {[%clk 01:31:42]} {[%emt 00:00:09]} Nf6 {[%clk
01:30:27]} {[%emt 00:01:19]} 4. Nf3 {[%clk 01:32:05]} {[%emt 00:00:07]} e6
{[%clk 01:29:51]} {[%emt 00:01:06]} 5. Bb5+ {[%clk 01:32:18]} {[%emt 00:00:16]}
Nbd7 {[%clk 01:27:09]} {[%emt 00:03:12]} 6. e5 {[%clk 01:31:40]} {[%emt
00:01:08]} dxe5 {[%clk 01:27:26]} {[%emt 00:00:14]} 7. Nxe5 {[%clk 01:32:09]}
{[%emt 00:00:01]} Be7 {[%clk 01:27:43]} {[%emt 00:00:12]} 8. d4 {[%clk
01:30:15]} {[%emt 00:02:24]} O-O {[%clk 01:26:15]} {[%emt 00:01:58]} 9. O-O
{[%clk 01:29:51]} {[%emt 00:00:54]} a6 {[%clk 01:21:55]} {[%emt 00:04:50]} 10.
Nxd7 {[%clk 01:25:04]} {[%emt 00:05:17]} Bxd7 {[%clk 01:21:25]} {[%emt
00:01:00]} 11. Be2 {[%clk 01:23:29]} {[%emt 00:02:04]} b5 {[%clk 01:15:35]}
{[%emt 00:06:20]} 12. dxc5 {[%clk 01:23:13]} {[%emt 00:00:47]} b4 {[%clk
01:14:59]} {[%emt 00:01:07]} 13. Nb1 {[%clk 01:23:33]} {[%emt 00:00:10]} Bxc5
{[%clk 01:15:22]} {[%emt 00:00:06]} 14. Bf3 {[%clk 01:23:32]} {[%emt 00:00:30]}
Rb8 {[%clk 01:14:47]} {[%emt 00:01:06]} 15. Bf4 {[%clk 01:23:47]} {[%emt
00:00:15]} Bb5 {[%clk 01:12:00]} {[%emt 00:03:16]} 16. Bxb8 {[%clk 01:21:37]}
{[%emt 00:02:40]} Bxf1 {[%clk 01:10:27]} {[%emt 00:02:03]} 17. Qxf1 {[%clk
01:22:05]} {[%emt 00:00:02]} Qxb8 {[%clk 01:08:57]} {[%emt 00:01:59]} 18. Qxa6
{[%clk 01:21:29]} {[%emt 00:01:07]} Qe5 {[%clk 01:08:50]} {[%emt 00:00:37]} 19.
c3 {[%clk 01:18:24]} {[%emt 00:03:35]} Qe1+ {[%clk 01:08:19]} {[%emt 00:01:02]}
20. Kh2 {[%clk 01:16:57]} {[%emt 00:01:55]} Bxf2 {[%clk 01:08:38]} {[%emt
00:00:12]} 21. h4 {[%clk 01:07:12]} {[%emt 00:10:16]} Qg1+ {[%emt 00:01:26]}
0-1

[Event "12ème open de Salon"]
[Site "Salon de Provence, France"]
[Date "2022.07.09"]
[Round "1.5"]
[White "Espanet, Fabien"]
[Black "Piquemal, Maxence"]
[Result "1/2-1/2"]
[TimeControl "1 h 30 min + 30 s"]
[WhiteElo "1436"]
[BlackElo "1668"]

1. e4 {[%clk 01:30:56]} {[%emt 00:00:02]} d5 {[%clk 01:30:54]} {[%emt
00:00:07]} 2. exd5 {[%clk 01:31:20]} {[%emt 00:00:06]} Qxd5 {[%clk 01:31:18]}
{[%emt 00:00:07]} 3. Nc3 {[%clk 01:31:42]} {[%emt 00:00:07]} Qa5 {[%clk
01:31:31]} {[%emt 00:00:17]} 4. d4 {[%clk 01:31:57]} {[%emt 00:00:15]} Nf6
{[%clk 01:31:13]} {[%emt 00:00:48]} 5. Bd2 {[%clk 01:32:03]} {[%emt 00:00:24]}
c6 {[%clk 01:30:51]} {[%emt 00:00:52]} 6. Nf3 {[%clk 01:31:22]} {[%emt
00:01:10]} Bg4 {[%clk 01:30:21]} {[%emt 00:01:01]} 7. Bc4 {[%clk 01:29:41]}
{[%emt 00:02:11]} e6 {[%clk 01:25:01]} {[%emt 00:05:50]} 8. Ne4 {[%clk
01:19:32]} {[%emt 00:10:39]} Qd8 {[%clk 01:23:35]} {[%emt 00:01:56]} 9. Bg5
{[%clk 01:17:42]} {[%emt 00:02:20]} Be7 {[%clk 01:13:03]} {[%emt 00:11:03]} 10.
Ng3 {[%clk 01:16:05]} {[%emt 00:02:06]} Bxf3 {[%clk 01:09:46]} {[%emt
00:03:48]} 11. gxf3 {[%clk 01:16:21]} {[%emt 00:00:13]} Nd5 {[%clk 01:05:57]}
{[%emt 00:04:18]} 12. Bd2 {[%clk 01:15:05]} {[%emt 00:01:46]} Nd7 {[%clk
01:03:32]} {[%emt 00:02:55]} 13. Bxd5 {[%clk 01:09:52]} {[%emt 00:05:43]} cxd5
{[%clk 01:03:09]} {[%emt 00:00:54]} 14. Qe2 {[%clk 01:07:48]} {[%emt 00:02:33]}
Qb6 {[%clk 00:59:37]} {[%emt 00:04:03]} 15. O-O-O {[%clk 01:06:38]} {[%emt
00:01:40]} Nf6 {[%clk 00:53:25]} {[%emt 00:06:43]} 16. Rhg1 {[%clk 00:56:27]}
{[%emt 00:10:40]} Rc8 {[%clk 00:49:30]} {[%emt 00:04:25]} 17. Bf4 {[%clk
00:47:13]} {[%emt 00:09:43]} Rc6 {[%clk 00:38:28]} {[%emt 00:11:32]} 18. Nf1
{[%clk 00:44:00]} {[%emt 00:03:43]} Qa5 {[%clk 00:31:58]} {[%emt 00:07:00]} 19.
a3 {[%clk 00:38:45]} {[%emt 00:05:45]} Bxa3 {[%clk 00:24:28]} {[%emt 00:08:00]}
20. Rd3 {[%clk 00:33:15]} {[%emt 00:06:00]} Bb4 {[%clk 00:19:09]} {[%emt
00:05:49]} 21. c3 {[%clk 00:32:06]} {[%emt 00:01:39]} Nh5 {[%clk 00:14:39]}
{[%emt 00:05:00]} 22. Be5 {[%clk 00:25:25]} {[%emt 00:07:11]} f6 {[%clk
00:12:48]} {[%emt 00:02:22]} 23. f4 {[%clk 00:25:41]} {[%emt 00:00:14]} g6
{[%clk 00:09:21]} {[%emt 00:03:57]} 24. f5 {[%clk 00:25:18]} {[%emt 00:00:52]}
fxe5 {[%clk 00:07:34]} {[%emt 00:02:17]} 25. Qxe5 {[%clk 00:25:07]} {[%emt
00:00:41]} Rf8 {[%clk 00:06:12]} {[%emt 00:01:52]} 26. fxg6 {[%clk 00:19:30]}
{[%emt 00:06:07]} Qa1+ {[%clk 00:04:48]} {[%emt 00:01:54]} 27. Kc2 {[%clk
00:19:41]} {[%emt 00:00:19]} Rxf2+ {[%clk 00:04:33]} {[%emt 00:00:46]} 28. Nd2
{[%clk 00:19:48]} {[%emt 00:00:23]} Qa4+ {[%clk 00:01:00]} {[%emt 00:04:03]} 29.
Kb1 {[%clk 00:18:48]} {[%emt 00:01:30]} hxg6 {[%clk 00:01:05]} {[%emt
00:00:25]} 30. Qb8+ {[%clk 00:18:48]} {[%emt 00:00:30]} Kd7 {[%clk 00:00:47]}
{[%emt 00:00:48]} 31. Qxb7+ {[%clk 00:19:08]} {[%emt 00:00:09]} Rc7 {[%clk
00:00:53]} {[%emt 00:00:25]} 32. Qxb4 {[%clk 00:18:57]} {[%emt 00:00:41]} Qxb4
{[%clk 00:01:02]} {[%emt 00:00:22]} 33. cxb4 {[%clk 00:19:18]} {[%emt
00:00:08]} Nf4 {[%clk 00:01:05]} {[%emt 00:00:28]} 34. Rf3 {[%clk 00:19:05]}
{[%emt 00:00:43]} Rxd2 {[%clk 00:01:00]} {[%emt 00:00:35]} 35. Rxf4 {[%clk
00:19:26]} {[%emt 00:00:09]} Rcc2 {[%clk 00:01:14]} {[%emt 00:00:16]} 36. Rf7+
{[%clk 00:18:34]} {[%emt 00:01:22]} Kd6 {[%clk 00:00:50]} {[%emt 00:00:53]} 37.
Rxa7 {[%clk 00:18:56]} {[%emt 00:00:08]} Rxb2+ {[%clk 00:01:04]} {[%emt
00:00:16]} 38. Ka1 {[%clk 00:19:19]} {[%emt 00:00:07]} Rxh2 {[%clk 00:00:48]}
{[%emt 00:00:47]} 39. Rxg6 {[%clk 00:19:18]} {[%emt 00:00:32]} Rxb4 {[%clk
00:00:32]} {[%emt 00:00:45]} 40. Ra6+ {[%clk 00:19:38]} {[%emt 00:00:10]} Kc7
{[%clk 00:00:38]} {[%emt 00:00:24]} 41. Rg7+ {[%clk 00:19:33]} {[%emt
00:00:35]} Kb8 {[%clk 00:00:44]} {[%emt 00:00:24]} 42. Rxe6 {[%clk 00:19:52]}
{[%emt 00:00:12]} Ra4+ {[%clk 00:00:50]} {[%emt 00:00:24]} 43. Kb1 {[%clk
00:20:09]} {[%emt 00:00:13]} Rb4+ {[%clk 00:01:16]} {[%emt 00:00:05]} 44. Kc1
{[%clk 00:20:16]} {[%emt 00:00:23]} Rc4+ {[%clk 00:01:40]} {[%emt 00:00:06]} 45.
Kb1 {[%clk 00:20:18]} {[%emt 00:00:27]} Rh1+ {[%clk 00:01:03]} {[%emt
00:01:07]} 46. Kb2 {[%clk 00:20:39]} {[%emt 00:00:09]} 1/2-1/2

[Event "12ème open de Salon"]
[Site "Salon de Provence, France"]
[Date "2022.07.09"]
[Round "1.6"]
[White "Colandrea, Sauveur"]
[Black "Birrittieri, Justin"]
[Result "1-0"]
[TimeControl "1 h 30 min + 30 s"]
[WhiteElo "1619"]
[BlackElo "1394"]

1. Nf3 {[%clk 01:30:49]} {[%emt 00:00:10]} Nf6 {[%clk 01:30:45]} {[%emt
00:00:15]} 2. d4 {[%clk 01:30:58]} {[%emt 00:00:22]} d5 {[%clk 01:30:37]}
{[%emt 00:00:38]} 3. c4 {[%clk 01:31:00]} {[%emt 00:00:27]} g6 {[%clk
01:29:05]} {[%emt 00:02:03]} 4. cxd5 {[%clk 01:29:00]} {[%emt 00:02:30]} Nxd5
{[%clk 01:28:53]} {[%emt 00:00:42]} 5. e4 {[%clk 01:29:17]} {[%emt 00:00:13]}
Nb6 {[%clk 01:28:56]} {[%emt 00:00:27]} 6. Nc3 {[%clk 01:28:09]} {[%emt
00:01:38]} Bg4 {[%clk 01:28:40]} {[%emt 00:00:46]} 7. Be3 {[%clk 01:26:20]}
{[%emt 00:02:19]} Bg7 {[%clk 01:29:02]} {[%emt 00:00:09]} 8. Be2 {[%clk
01:26:28]} {[%emt 00:00:22]} O-O {[%clk 01:29:22]} {[%emt 00:00:10]} 9. O-O
{[%clk 01:25:31]} {[%emt 00:01:26]} Bxf3 {[%clk 01:27:43]} {[%emt 00:02:09]} 10.
Bxf3 {[%clk 01:19:50]} {[%emt 00:06:11]} Nc4 {[%clk 01:27:30]} {[%emt
00:00:44]} 11. Qb3 {[%clk 01:20:06]} {[%emt 00:00:14]} Nxe3 {[%clk 01:27:03]}
{[%emt 00:00:57]} 12. fxe3 {[%clk 01:20:23]} {[%emt 00:00:12]} Qc8 {[%clk
01:20:11]} {[%emt 00:07:23]} 13. Nd5 {[%clk 01:16:39]} {[%emt 00:04:14]} Nc6
{[%clk 01:20:09]} {[%emt 00:00:32]} 14. Rac1 {[%clk 01:16:44]} {[%emt
00:00:25]} e6 {[%clk 01:20:21]} {[%emt 00:00:19]} 15. Nf4 {[%clk 01:12:57]}
{[%emt 00:04:16]} Nxd4 {[%clk 01:18:17]} {[%emt 00:02:34]} 16. exd4 {[%clk
01:12:33]} {[%emt 00:00:54]} Bxd4+ {[%clk 01:18:28]} {[%emt 00:00:18]} 17. Kh1
{[%clk 01:12:43]} {[%emt 00:00:20]} c5 {[%clk 01:16:26]} {[%emt 00:02:32]} 18.
Bg4 {[%clk 01:00:04]} {[%emt 00:13:08]} Re8 {[%clk 01:15:25]} {[%emt 00:01:32]}
19. Rce1 {[%clk 00:51:32]} {[%emt 00:09:01]} a5 {[%clk 01:09:47]} {[%emt
00:06:08]} 20. e5 {[%clk 00:48:03]} {[%emt 00:03:59]} Ra6 {[%clk 01:09:34]}
{[%emt 00:00:43]} 21. Nd5 {[%clk 00:47:53]} {[%emt 00:00:41]} Kg7 {[%emt
00:02:25]} 22. Qf3 {[%clk 00:45:30]} {[%emt 00:02:48]} Rf8 {[%clk 01:06:50]}
{[%emt 00:01:25]} 23. Qf6+ {[%clk 00:45:40]} {[%emt 00:00:19]} Kg8 {[%clk
01:07:11]} {[%emt 00:00:09]} 24. Ne7# {[%clk 00:46:04]} {[%emt 00:00:06]} 1-0